fUSD/lending_fUSD_20240318
["ID","MTS","AMOUNT","RATE_DAILY","PERIOD"]
[319461245,1710789667006,-300.0,0.00011937,2]
[319461246,1710789667039,-999400.0,0.00014,2]
[319461247,1710789951806,656.23,0.00011202,2]
[319461248,1710789976474,317.38530222,0.00011202,2]
[319461249,1710789977754,363.48949343,0.00011202,2]
[319461250,1710789996545,317.90549493,0.00011202,2]
[319461251,1710789998027,363.48949343,0.00011202,2]
[319461252,1710790019755,188.88586628,0.00011202,2]
[319461253,1710790160150,-12768.634618,0.00012481,2]
[319461254,1710790160175,-559.51794619,0.00012544,2]
[319461255,1710790160195,-1178.65,0.00012545,2]
[319461256,1710790160215,-155.0,0.00012697,2]
[319461257,1710790160234,-191.03,0.00012698,2]
[319461258,1710790160258,-403.46642306,0.00012708,2]
[319461259,1710790160278,-155.0,0.00012709,2]
[319461260,1710790160302,-617.56745994,0.00012709,2]
[319461261,1710790160322,-284.43059665,0.0001271,2]
[319461262,1710790160343,-6379.30274339,0.00012735,5]
[319461263,1710790164139,-797.71876949,0.00012735,5]
[319461264,1710790164161,-6201.18673051,0.00012736,2]
[319461265,1710790165380,-1518.30326949,0.00012736,2]
[319461266,1710790165459,-729.07,0.00012736,2]
[319461267,1710790165482,-289.14,0.00012879,2]
[319461268,1710790165504,-394.74,0.00012879,2]
[319461269,1710790165525,-300.0,0.00012966,2]
[319461270,1710790165548,-300.0,0.00012966,2]
[319461271,1710790165569,-150.0,0.00012966,2]
[319461272,1710790165589,-209.97595039,0.00013033,2]
[319461273,1710790165611,-209.97595038,0.00013034,2]
[319461274,1710790165634,-840.0,0.00013074,2]
[319461275,1710790165655,-26384.78791306,0.00013134,2]
[319461276,1710790165679,-166.98,0.00013146,2]
[319461277,1710790165704,-250.0,0.00013201,2]
[319461278,1710790165726,-451.62673576,0.00013293,2]
[319461279,1710790165748,-282.9406,0.00013297,2]
[319461280,1710790165769,-500.0,0.00013355,2]
[319461281,1710790165797,-301.48758092,0.00013465,2]
[319461282,1710790170275,-354.74241908,0.00013465,2]
[319461283,1710790170296,-410.0,0.00013699,2]
[319461284,1710790170313,-1500.0,0.00013699,4]
[319461285,1710790170333,-250.0,0.00013699,2]
[319461286,1710790170351,-150.0,0.00013777,2]
[319461287,1710790170371,-250.42589148,0.00013857,2]
[319461288,1710790170390,-150.0,0.00013898,2]
[319461289,1710790170410,-205.20911928,0.00013997,2]
[319461290,1710790170429,-1275.20873974,0.00013997,2]
[319461291,1710790170449,-155.0,0.00013997,2]
[319461292,1710790170467,-500.0,0.00013997,2]
[319461293,1710790170487,-235.75229677,0.00013997,2]
[319461294,1710790170506,-160.02630708,0.00013998,2]
[319461295,1710790170525,-898.27569018,0.00013999,2]
[319461296,1710790170546,-4021.25148128,0.00013999,2]
[319461297,1710790170565,-50397.90043511,0.00014,2]
[319461298,1710790170595,-156818.9,0.00014,2]
[319461299,1710790172094,-36857.694,0.00014,2]
[319461300,1710790174095,-172.83408813,0.00013999,2]
[319461301,1710790174115,-395.47066028,0.00013999,2]
[319461302,1710790174134,-155.0,0.00013999,2]
[319461303,1710790174154,-24631.06425159,0.00014,2]
[319461309,1710790232237,-7177.02151288,0.00013997,5]
[319461310,1710790232246,-249.95358599,0.00013998,2]
[319461311,1710790232257,-758.9607782,0.00013998,2]
[319461312,1710790232268,-155.20778025,0.00013998,2]
[319461313,1710790232277,-150.0,0.00013998,2]
[319461314,1710790232287,-150.0,0.00013998,2]
[319461315,1710790232297,-13408.34805897,0.00014,2]
[319461316,1710790232307,-11329.41073966,0.00014,2]
[319461317,1710790232317,-406.15792888,0.00014,2]
[319461318,1710790232327,-1000.0,0.00014,2]
[319461319,1710790232340,-155.13927914,0.00014,2]
[319461320,1710790232349,-196.55651067,0.00014,2]
[319461321,1710790232358,-7436.556,0.00014,2]
[319461322,1710790232367,-401.37,0.00014058,2]
[319461323,1710790232376,-499.99,0.00014058,2]
[319461324,1710790232384,-283.5,0.00014058,2]
[319461325,1710790232394,-200.0,0.00014293,2]
[319461326,1710790232403,-172.5,0.00014358,2]
[319461327,1710790232413,-11195.45,0.00014451,2]
[319461328,1710790232422,-150.0,0.00014473,2]
[319461330,1710790232432,-289.14,0.00014488,2]
[319461331,1710790232442,-150.0,0.00014496,2]
[319461332,1710790232451,-2132.5,0.00014593,2]
[319461334,1710790232460,-840.0,0.00014708,2]
[319461336,1710790232471,-3000.0,0.0001474,2]
[319461338,1710790232480,-422.51,0.00014771,2]
[319461340,1710790232490,-3000.0,0.0001486,2]
[319461343,1710790232499,-160.45,0.00014946,2]
[319461345,1710790232509,-10431.17164274,0.00015,2]
[319461347,1710790232519,-1000.0,0.00015,2]
[319461349,1710790232529,-1000.0,0.00015,2]
[319461351,1710790232539,-1000.0,0.00015,2]
[319461353,1710790232549,-1000.0,0.00015,2]
[319461354,1710790232558,-1000.0,0.00015,2]
[319461357,1710790232571,-3985.0,0.00015,2]
[319461359,1710790232581,-19371.03892811,0.00015,2]
[319461361,1710790232594,-3965.5729381,0.00015,2]
[319461363,1710790232604,-772.0,0.00015,2]
[319461365,1710790232612,-3000.0,0.0001501,2]
[319461367,1710790232621,-187.66,0.00015068,2]
[319461369,1710790232630,-3000.0,0.0001517,2]
[319461371,1710790232640,-1178.65,0.00015284,2]
[319461373,1710790232649,-578.72144426,0.000153,2]
[319461375,1710790232659,-578.72144426,0.000153,2]
[319461377,1710790232669,-578.72144426,0.000153,2]
[319461379,1710790232679,-578.72144426,0.000153,2]
[319461381,1710790232688,-578.72144426,0.000153,2]
[319461383,1710790232697,-578.72144426,0.000153,2]
[319461385,1710790232707,-7125.26104318,0.000153,2]
[319461386,1710790232717,-578.72144426,0.0001531,2]
[319461387,1710790232726,-3000.0,0.0001532,2]
[319461388,1710790232736,-578.72144426,0.0001539,2]
[319461389,1710790232745,-578.72144426,0.0001539,2]
[319461390,1710790232755,-578.72144426,0.0001539,2]
[319461391,1710790232764,-210.0,0.00015398,2]
[319461392,1710790232773,-15502.61874254,0.000154,2]
[319461393,1710790232784,-578.72144426,0.0001547,2]
[319461394,1710790232796,-3000.0,0.0001548,2]
[319461395,1710790232805,-401.37,0.0001562,2]
[319461396,1710790232815,-283.5,0.0001562,2]
[319461397,1710790232825,-656.23,0.00015729,2]
[319461398,1710790232835,-213.12521067,0.0001574,2]
[319461399,1710790232845,-200.0,0.00015881,2]
[319461400,1710790232855,-319.06229297,0.000159,2]
[319461401,1710790232865,-643.24708674,0.00016,2]
[319461402,1710790232875,-289.14,0.00016098,2]
[319461403,1710790232887,-840.0,0.00016342,2]
[319461404,1710790232897,-187.66,0.00016438,2]
[319461405,1710790232907,-578.72144426,0.0001649,2]
[319461406,1710790232916,-1216.22344563,0.000165,2]
[319461407,1710790232926,-172.5,0.00016751,2]
[319461408,1710790232935,-750.0,0.00017,3]
[319461409,1710790232946,-304.02838647,0.00017,2]
[319461410,1710790232956,-401.37,0.00017182,2]
[319461411,1710790232967,-283.5,0.00017182,2]
[319461412,1710790232976,-178.29,0.000173,2]
[319461413,1710790232987,-200.0,0.00017469,2]
[319461414,1710790232996,-289.14,0.00017708,2]
[319461415,1710790233007,-209.27,0.00017808,10]
[319461416,1710790233017,-178.29,0.00017848,2]
[319461417,1710790233026,-840.0,0.00017976,2]
[319461418,1710790233037,-578.72144426,0.00017983,2]
[319461419,1710790233046,-656.23,0.00017993,2]
[319461420,1710790233057,-1137.1505675,0.00018,2]
[319461421,1710790233067,-400.0,0.00018,2]
[319461422,1710790233077,-1178.65,0.00018024,2]
[319461423,1710790233087,-157.7,0.00018188,2]
[319461424,1710790233096,-150.0,0.00018188,2]
[319461425,1710790233105,-200.0,0.00018188,2]
[319461426,1710790233115,-1101.67,0.00018188,2]
[319461427,1710790233124,-200.0,0.00018188,2]
[319461428,1710790233133,-578.72144426,0.0001819,2]
[319461429,1710790233143,-1465.99980728,0.000182,2]
[319461430,1710790233153,-209.27,0.00018245,10]
[319461431,1710790233162,-155.46,0.00018324,2]
[319461432,1710790233172,-178.29,0.00018396,2]
[319461433,1710790233182,-155.46,0.00018483,2]
[319461434,1710790233192,-2526.1837613,0.00018563,2]
[319461435,1710790233201,-155.46,0.00018643,2]
[319461436,1710790233211,-209.27,0.00018681,10]
[319461437,1710790233221,-578.72144426,0.0001869,2]
[319461438,1710790233231,-578.72144426,0.0001869,2]
[319461439,1710790233241,-578.72144426,0.0001869,2]
[319461440,1710790233250,-578.72144426,0.0001869,2]
[319461441,1710790233259,-578.72144426,0.0001869,2]
[319461442,1710790233270,-578.72144426,0.0001869,2]
[319461443,1710790233280,-578.72144426,0.0001869,2]
[319461444,1710790233290,-35292.83185817,0.000187,2]
[319461445,1710790233301,-401.37,0.00018744,2]
[319461446,1710790233311,-283.5,0.00018744,2]
[319461447,1710790233321,-260.53,0.000188,2]
[319461448,1710790233330,-155.46,0.00018802,2]
[319461449,1710790233343,-296.71847077,0.000189,2]
[319461450,1710790233352,-578.72144426,0.00018927,2]
[319461451,1710790233362,-260.53,0.00018937,2]
[319461452,1710790233371,-178.29,0.00018944,2]
[319461453,1710790233380,-155.46,0.00018961,2]
[319461454,1710790233392,-800.0,0.00019,3]
[319461455,1710790233403,-155.0,0.00019,2]
[319461456,1710790233412,-200.0,0.00019058,2]
[319461457,1710790233422,-260.53,0.00019074,2]
[319461458,1710790233432,-209.27,0.00019117,10]
[319461459,1710790233441,-155.46,0.0001912,2]
[319461460,1710790233451,-172.5,0.00019145,2]
[319461461,1710790233462,-578.72144426,0.00019168,2]
[319461462,1710790233472,-578.72144426,0.00019168,2]
[319461463,1710790233481,-578.72144426,0.00019168,2]
[319461464,1710790233491,-578.72144426,0.00019168,2]
[319461465,1710790233500,-578.72144426,0.00019168,2]
[319461466,1710790233510,-578.72144426,0.00019168,2]
[319461467,1710790233519,-578.72144426,0.00019168,2]
[319461468,1710790233529,-1227.0,0.00019178,2]
[319461469,1710790233538,-200.0,0.00019178,2]
[319461470,1710790233548,-200.0,0.00019178,2]
[319461471,1710790233557,-200.0,0.00019178,2]
[319461472,1710790233567,-200.0,0.00019178,2]
[319461473,1710790233577,-200.0,0.00019178,2]
[319461474,1710790233589,-200.0,0.00019178,2]
[319461475,1710790233600,-158.0,0.00019178,2]
[319461476,1710790233609,-410.0,0.00019178,2]
[319461477,1710790233620,-500.0,0.00019178,2]
[319461478,1710790233630,-260.53,0.00019211,2]
[319461479,1710790233640,-155.46,0.00019279,2]
[319461480,1710790233650,-180.0,0.00019288,2]
[319461481,1710790233660,-289.14,0.00019318,2]
[319461482,1710790233670,-260.53,0.00019348,2]
[319461483,1710790233679,-153.05383811,0.0001938,2]
[319461484,1710790233689,-157.7,0.00019461,2]
[319461485,1710790233698,-534.65387341,0.00019476,2]
[319461486,1710790233708,-260.53,0.00019485,2]
[319461487,1710790233717,-578.72144426,0.0001949,2]
[319461488,1710790233727,-178.29,0.00019492,2]
[319461489,1710790233736,-363.4667793,0.000195,2]
[319461490,1710790233745,-12475.13117813,0.000195,2]
[319461491,1710790233754,-209.27,0.00019553,10]
[319461492,1710790233764,-840.0,0.0001961,2]
[319461493,1710790233773,-260.53,0.00019622,2]
[319461494,1710790233783,-153.05383811,0.00019637,2]
[319461495,1710790233793,-195.23593301,0.0001965,2]
[319461496,1710790233802,-154.56303768,0.00019656,2]
[319461497,1710790233816,-303.84720435,0.00019687,2]
[319461498,1710790233826,-612.258738,0.00019726,2]
[319461499,1710790233837,-260.53,0.00019759,2]
[319461500,1710790233847,-260.53,0.00019896,2]
[319461501,1710790233858,-195.23593301,0.000199,2]
[319461502,1710790233867,-186.42814041,0.00019947,2]
[319461503,1710790233877,-211.35479475,0.0001998,2]
[319461504,1710790233888,-1000.0,0.00019996,2]
[319461505,1710790233898,-3632.14537547,0.00019997,2]
[319461506,1710790233907,-157.43821867,0.00019997,2]
[319461507,1710790233917,-5000.0,0.00019997,2]
[319461508,1710790233927,-2169.05123034,0.00019997,2]
[319461509,1710790233936,-373.57574685,0.00019997,2]
[319461510,1710790233946,-3564.41528458,0.00019997,2]
[319461511,1710790233955,-352.11820824,0.00019997,2]
[319461512,1710790233965,-214.9965848,0.00019998,2]
[319461513,1710790233975,-151.0,0.0002,2]
[319461514,1710790234220,-2200.0,0.0002,2]
[319461515,1710790234230,-153.228098,0.0002,2]
[319461516,1710790234240,-152.870522,0.0002,2]
[319461517,1710790234251,-175.965378,0.0002,2]
[319461518,1710790234261,-151.0,0.0002,2]
[319461519,1710790234271,-151.0,0.0002,2]
[319461520,1710790234281,-155.0,0.0002,2]
[319461521,1710790234290,-155.0,0.0002,2]
[319461522,1710790234300,-155.0,0.0002,2]
[319461523,1710790234310,-172.09730562,0.0002,2]
[319461524,1710790234319,-4340.0,0.0002,2]
[319461525,1710790234329,-194.09771204,0.0002,2]
[319461526,1710790234341,-286.63395729,0.0002,2]
[319461527,1710790234351,-184.88529752,0.0002,2]
[319461528,1710790234360,-999.03912351,0.0002,2]
[319461529,1710790234369,-1190.0,0.0002,5]
[319461530,1710790234379,-166.44360794,0.00020026,2]
[319461531,1710790234389,-260.53,0.00020033,2]
[319461532,1710790234398,-178.29,0.0002004,2]
[319461533,1710790234408,-260.53,0.0002017,2]
[319461534,1710790234418,-656.23,0.00020257,2]
[319461535,1710790234428,-195.23593301,0.00020291,2]
[319461536,1710790234438,-23791.301217,0.000203,2]
[319461537,1710790234447,-275.5,0.000203,2]
[319461538,1710790234458,-260.53,0.00020307,2]
[319461539,1710790234468,-176.0,0.00020411,2]
[319461540,1710790234477,-155.0,0.00020411,2]
[319461541,1710790234487,-470.0,0.00020411,2]
[319461542,1710790234496,-260.53,0.00020444,2]
[319461543,1710790234506,-155.59856159,0.0002046,2]
[319461544,1710790234515,-259.0,0.0002046,4]
[319461545,1710790234526,-152.86750514,0.0002046,2]
[319461546,1710790234536,-433.928492,0.0002046,3]
[319461547,1710790234545,-150.0,0.0002046,2]
[319461548,1710790234555,-150.0,0.0002046,2]
[319461549,1710790234565,-200.0,0.0002046,2]
[319461550,1710790234576,-1026.0,0.0002046,5]
[319461551,1710790234586,-1026.0,0.0002046,5]
[319461552,1710790234597,-1026.0,0.0002046,5]
[319461553,1710790234608,-1026.0,0.0002046,5]
[319461554,1710790234618,-1026.0,0.0002046,5]
[319461555,1710790234627,-1026.0,0.0002046,5]
[319461556,1710790234637,-1026.0,0.0002046,5]
[319461557,1710790234646,-1026.0,0.0002046,5]
[319461558,1710790234655,-1026.0,0.0002046,5]
[319461559,1710790234664,-1026.0,0.0002046,5]
[319461560,1710790234674,-1026.0,0.0002046,5]
[319461561,1710790234684,-1026.0,0.0002046,5]
[319461562,1710790234693,-1026.0,0.0002046,5]
[319461563,1710790234702,-1026.0,0.0002046,5]
[319461564,1710790234712,-1026.0,0.0002046,5]
[319461565,1710790234722,-488.09186534,0.0002046,5]
[319461566,1710790234731,-1026.0,0.0002046,5]
[319461567,1710790234740,-154.56303768,0.00020481,2]
[319461568,1710790234750,-2415.41,0.0002049,2]
[319461569,1710790234759,-166.43373831,0.00020498,2]
[319461570,1710790234768,-154.56303768,0.0002054,2]
[319461571,1710790234778,-612.258738,0.00020548,2]
[319461572,1710790234787,-170.21,0.00020548,2]
[319461573,1710790234801,-755.0,0.00020548,5]
[319461574,1710790234810,-2415.41,0.00020566,2]
[319461575,1710790234820,-260.53,0.00020581,2]
[319461576,1710790234829,-178.29,0.00020588,2]
[319461577,1710790234840,-153.80188616,0.00020597,2]
[319461578,1710790234849,-309.36898007,0.000206,2]
[319461579,1710790234857,-2415.41,0.00020641,2]
[319461580,1710790234866,-2415.41,0.00020717,2]
[319461581,1710790234875,-260.53,0.00020718,2]
[319461582,1710790234884,-154.56303768,0.00020751,2]
[319461583,1710790234894,-2415.41,0.00020792,2]
[319461584,1710790234903,-260.53,0.00020855,2]
[319461585,1710790234912,-336.68118772,0.00020867,2]
[319461586,1710790234921,-2415.41,0.00020868,2]
[319461587,1710790234931,-2415.41,0.00020943,2]
[319461588,1710790234941,-19999.99,0.00020951,2]
[319461589,1710790234950,-3079.14,0.00020951,2]
[319461590,1710790234959,-2185.05,0.00020951,2]
[319461591,1710790234969,-153.80188616,0.00020965,2]
[319461592,1710790234980,-260.53,0.00020992,2]
[319461593,1710790234990,-154.56303768,0.00020999,2]
[319461594,1710790234999,-15000.0,0.00021,2]
[319461595,1710790235009,-850.0,0.00021,3]
[319461596,1710790235019,-2415.41,0.00021019,2]
[319461597,1710790235028,-158.48273697,0.00021067,2]
[319461598,1710790235038,-2415.41,0.00021094,2]
[319461599,1710790235048,-2773.9,0.00021096,2]
[319461600,1710790235059,-150.9722901,0.00021104,2]
[319461601,1710790235069,-260.53,0.00021129,2]
[319461602,1710790235080,-178.29,0.00021136,2]
[319461603,1710790235092,-153.05383811,0.00021143,2]
[319461604,1710790235101,-2415.41,0.0002117,2]
[319461605,1710790235112,-150.0,0.00021174,2]
[319461606,1710790235122,-1136.0,0.00021174,2]
[319461607,1710790235132,-802.926,0.00021174,2]
[319461608,1710790235142,-3000.0,0.00021174,2]
[319461609,1710790235152,-413.0,0.00021174,2]
[319461610,1710790235162,-2418.0,0.00021174,2]
[319461611,1710790235172,-1458.0,0.00021174,2]
[319461612,1710790235182,-213.0,0.00021174,2]
[319461613,1710790235192,-1622.0,0.00021174,2]
[319461614,1710790235202,-2561.0,0.00021174,2]
[319461615,1710790235212,-5669.0,0.00021174,2]
[319461616,1710790235223,-42884.0,0.00021174,2]
[319461617,1710790235233,-1378.0,0.00021174,2]
[319461618,1710790235244,-4762.0,0.00021174,2]
[319461619,1710790235254,-2445.0,0.00021174,2]
[319461620,1710790235263,-959.0,0.00021174,2]
[319461621,1710790235273,-1227.0,0.00021174,2]
[319461622,1710790235284,-536.0,0.00021174,2]
[319461623,1710790235294,-457.0,0.00021174,2]
[319461624,1710790235304,-1044.0,0.00021174,2]
[319461625,1710790235316,-1263.0,0.00021174,2]
[319461626,1710790235326,-432.0,0.00021174,2]
[319461627,1710790235337,-827.57,0.00021205,2]
[319461628,1710790235347,-2415.41,0.00021245,2]
[319461629,1710790235358,-154.56303768,0.00021246,2]
[319461630,1710790235368,-260.53,0.00021266,2]
[319461631,1710790235378,-195.23593301,0.0002127,2]
[319461632,1710790235388,-275.5,0.000213,2]
[319461633,1710790235398,-195.23593301,0.00021301,2]
[319461634,1710790235409,-2415.41,0.0002132,2]
[319461635,1710790235419,-612.258738,0.0002137,2]
[319461636,1710790235429,-1000.0,0.00021396,2]
[319461637,1710790235439,-2415.41,0.00021396,2]
[319461638,1710790235449,-151.0,0.000214,2]
[319461639,1710790235458,-151.0,0.000214,2]
[319461640,1710790235468,-189.5820533,0.000214,2]
[319461641,1710790235478,-1000.0,0.000214,2]
[319461642,1710790235487,-260.53,0.00021403,2]
[319461643,1710790235497,-439.0,0.00021406,2]
[319461644,1710790235506,-1026.0,0.00021434,2]
[319461645,1710790235516,-2415.41,0.00021471,2]
[319461646,1710790235526,-1057.70329926,0.00021479,2]
[319461647,1710790235536,-4725.5365,0.00021497,2]
[319461648,1710790235548,-7500.0,0.00021497,2]
[319461649,1710790235558,-379.3564,0.00021497,2]
[319461650,1710790235568,-154.56303768,0.00021514,2]
[319461651,1710790235578,-172.5,0.00021538,2]
[319461652,1710790235588,-2415.41,0.00021547,2]
[319461653,1710790235598,-1477.09747244,0.0002156,2]
[319461654,1710790235608,-150.3178982,0.00021584,2]
[319461655,1710790235618,-62997.9987558,0.00021597,2]
[319461656,1710790236276,-8140.7972303,0.00021597,2]
[319461657,1710790236297,-4117.473422,0.00021597,2]
[319461658,1710790238786,-7125.26104318,0.00019308,2]
[319461659,1710790238795,-603.0,0.00021174,2]
[319461660,1710790238808,-278.0,0.00021174,2]
[319461661,1710790238817,-160.20850591,0.00021587,2]
[319461662,1710790238826,-2326.09401987,0.00021597,2]
[319461663,1710790238856,-1284.46871091,0.00021597,2]
[319461664,1710790238868,-10764.75308376,0.00021597,2]
[319461665,1710790238878,-151.0,0.00021597,2]
[319461666,1710790238887,-179.29984657,0.000216,2]
[319461667,1710790238896,-1512.0,0.000216,2]
[319461668,1710790238904,-20405.76651755,0.00021617,2]
[319461669,1710790238913,-2415.41,0.00021622,2]
[319461670,1710790238923,-408.47,0.00021624,2]
[319461671,1710790238932,-408.47,0.00021624,2]
[319461672,1710790238941,-408.47,0.00021624,2]
[319461673,1710790238950,-311.10772467,0.00021624,2]
[319461674,1710790238963,-97.36227533,0.00021624,2]
[319461675,1710790238973,-213.39781665,0.00021624,2]
[319461676,1710790238984,-195.07218335,0.00021624,2]
[319461677,1710790238994,-408.47,0.00021624,2]
[319461678,1710790239003,-195.23593301,0.00021636,2]
[319461679,1710790239011,-153.80188616,0.00021636,2]
[319461680,1710790239021,-176.0,0.00021644,2]
[319461681,1710790239030,-155.0,0.00021644,2]
[319461682,1710790239042,-470.0,0.00021644,2]
[319461683,1710790239051,-9246.71835772,0.0002167,2]
[319461684,1710790239062,-673.16,0.0002167,2]
[319461685,1710790239094,-398.075,0.00020943,2]
[319461686,1710790239210,-1756.595,0.00020943,2]
[319461687,1710790239220,-99233.25698417,0.0002167,2]
[319461688,1710790239339,-6497.31130135,0.0002167,2]
[319461689,1710790239362,-3498.64294038,0.0002167,2]
[319461690,1710790239374,-436.13851548,0.0002167,2]
[319461692,1710790240606,-319.91963,0.00021174,2]
[319461693,1710790240973,-208.77952196,0.00021174,2]
[319461694,1710790241020,-721.30084804,0.00021174,2]
[319461695,1710790241029,-3076.17864197,0.000213,2]
[319461696,1710790241040,-658.090015,0.000213,2]
[319461704,1710790243093,-434.0,0.00020548,2]
[319461705,1710790243104,-237.6885104,0.000213,2]
[319461706,1710790243150,-1536.19974907,0.000213,2]
[319461707,1710790243162,-1991.84308356,0.000213,2]
[319461708,1710790243172,-460.1742541,0.0002167,2]
[319461709,1710790243184,-1745.93747721,0.0002167,2]
[319461710,1710790243323,-7832.31547238,0.0002167,2]
[319461711,1710790243335,-4322.70902828,0.0002167,2]
[319461712,1710790243349,-3809.33202633,0.0002167,2]
[319461713,1710790243384,-2006.5,0.0002167,2]
[319461714,1710790243398,-3163.4,0.0002167,2]
[319461733,1710790246271,-867.37381871,0.00021669,2]
[319461737,1710790247277,-3634.53090045,0.00021669,2]
[319461738,1710790247349,-2630.013,0.00021174,2]
[319461739,1710790247359,-6827.5060205,0.00021669,2]
[319461740,1710790247368,-125123.4317792,0.0002167,2]
[319461741,1710790247713,-271.19005304,0.000195,2]
[319461742,1710790247724,-92.27672626,0.000195,2]
[319461743,1710790247733,-908.24624898,0.0002167,2]
[319461744,1710790559676,169.52943428,5e-05,2]
[319461745,1710790805548,363.41119776,5e-05,2]
[319461746,1710790810621,317.30069613,5e-05,2]
[319461749,1710790818184,19553.43717034,5e-05,2]
[319461750,1710790825467,363.12077311,5e-05,2]
[319461751,1710790826598,317.11151945,5e-05,2]
[319461752,1710790832111,19553.43717034,5e-05,2]
[319461753,1710790858237,1488.70540356,5e-05,2]
[319461757,1710791354092,-267.6660794,0.0001459,2]
[319461758,1710791354113,-361.97035984,0.00014591,2]
[319461759,1710791354147,-588.63899676,0.00014591,5]
[319461766,1710791432269,-238.55687951,0.00014591,2]
[319461767,1710791432303,-791.20300004,0.00014591,2]
[319461768,1710791432313,-7177.02151288,0.00014593,5]
[319461769,1710791432322,-164.94740714,0.00014593,2]
[319461770,1710791432331,-2251.89276788,0.00014594,2]
[319461771,1710791432341,-352.67318342,0.00014694,2]
[319461772,1710791432350,-352.67318341,0.00014847,2]
[319461773,1710791432360,-150.0,0.00014986,2]
[319461774,1710791432370,-153.03280394,0.00014999,2]
[319461775,1710791432383,-352.67318341,0.00015,2]
[319461776,1710791432393,-10431.17164274,0.00015099,2]
[319461777,1710791432402,-3586.0,0.000151,2]
[319461778,1710791432412,-999.99,0.000151,2]
[319461779,1710791432422,-153.03280389,0.00015655,2]
[319461780,1710791432431,-2526.1837613,0.00016253,2]
[319461781,1710791432441,-499.99,0.00016253,2]
[319461782,1710791432451,-150.99,0.00016253,2]
[319461783,1710791432460,-536.34,0.0001627,2]
[319461784,1710791432471,-153.03280389,0.0001631,2]
[319461785,1710791432480,-361.54227624,0.00016718,2]
[319461786,1710791432490,-153.03280389,0.00016966,2]
[319461787,1710791432501,-750.0,0.00017,3]
[319461788,1710791432510,-115.95323288,0.00017076,4]
[319461789,1710791432522,-184.03676712,0.00017076,4]
[319461790,1710791432532,-153.03280389,0.00017622,2]
[319461791,1710791432541,-543.95291501,0.00017763,2]
[319461792,1710791432551,-6.47216663,0.00018,2]
[319461796,1710791432617,-171.81783337,0.00018,2]
[319461798,1710791432627,-120.84416663,0.00018,2]
[319461805,1710791438224,-139.68583337,0.00018,2]
[319461806,1710791438234,-245.21730408,0.00018137,2]
[319461807,1710791438462,-15.31269592,0.00018137,2]
[319461808,1710791438471,-151.9,0.00018188,2]
[319461809,1710791438481,-250.0,0.00018188,2]
[319461810,1710791438491,-1465.99980728,0.000182,2]
[319461811,1710791438503,-382.27607428,0.00018274,2]
[319461812,1710791438513,-153.03280389,0.00018277,2]
[319461813,1710791438522,-1000.0,0.00018322,2]
[319461814,1710791438532,-250.0,0.00018322,2]
[319461815,1710791438541,-536.34,0.00018534,2]
[319461816,1710791438550,-178.29,0.00018548,2]
[319461817,1710791438560,-1297.48,0.00018603,2]
[319461818,1710791438569,-173.44,0.00018724,2]
[319461819,1710791438578,-166.68,0.00018733,2]
[319461820,1710791438588,-621.83266436,0.00018832,2]
[319461821,1710791438597,-153.03280389,0.00018933,2]
[319461822,1710791438606,-800.0,0.00019,3]
[319461823,1710791438615,-178.29,0.00019096,2]
[319461824,1710791438625,-500.0,0.00019178,2]
[319461825,1710791438635,-10965.749,0.00019255,2]
[319461826,1710791438645,-151.5947656,0.00019445,2]
[319461827,1710791438655,-166.25589649,0.00019481,2]